bitfinex/quotes_SOLUSD_20250425
["timestamp","ask_amount","ask_price","bid_price","bid_amount"]
[1745621024097,9.9226889,151.22,151.17,28.71449933]
[1745621024485,9.9226889,151.21,151.17,18.79181043]
[1745621026816,9.9226889,151.21,151.17,28.71449933]
[1745621028507,9.9226889,151.22,151.17,28.71449933]
[1745621029624,9.4226889,151.22,151.17,28.71449933]
[1745621030196,9.9226889,151.21,151.17,28.71449933]
[1745621031310,9.9226889,151.21,151.17,18.79181043]
[1745621033199,9.9226889,151.21,151.17,28.71449933]
[1745621034614,9.9226889,151.21,151.18,18.64964886]
[1745621034799,9.9226889,151.22,151.18,28.57233776]
[1745621039611,9.9226889,151.24,151.2,9.9226889]
[1745621039820,9.9226889,151.25,151.22,18.64964886]
[1745621042195,9.9226889,151.26,151.22,18.64964886]
[1745621046621,9.9226889,151.27,151.22,28.57233776]
[1745621046824,9.9226889,151.26,151.22,18.64964886]
[1745621048707,9.9226889,151.27,151.23,10.06485047]
[1745621050131,10.8592681,151.28,151.24,18.64964886]
[1745621050334,0.9365792,151.28,151.24,28.57233776]
[1745621050634,0.9365792,151.28,151.25,0.14216157]
[1745621050804,0.9365792,151.28,151.27,18.64964886]
[1745621052527,10.8592681,151.28,151.27,18.64964886]
[1745621055146,0.9365792,151.28,151.27,18.64964886]
[1745621055314,0.9365792,151.28,151.27,30.24319933]
[1745621055812,0.9365792,151.28,151.27,102.77679267]
[1745621057749,0.9365792,151.28,151.27,109.38748877]
[1745621058429,0.9365792,151.28,151.27,102.77679267]
[1745621059754,0.9365792,151.28,151.27,92.85410377]
[1745621059931,0.9365792,151.28,151.27,102.77679267]
[1745621062952,0.9365792,151.28,151.27,92.85410377]
[1745621065255,0.9365792,151.28,151.27,91.32540377]
[1745621066641,0.9365792,151.28,151.27,101.24809267]
[1745621066850,0.9365792,151.28,151.27,116.07478877]
[1745621068356,0.9365792,151.28,151.27,117.39622591]
[1745621071136,0.9365792,151.28,151.27,323.57622591]
[1745621071338,0.9365792,151.28,151.27,322.25478877]
[1745621072376,0.03,151.29,151.28,90.38882457]
[1745621072540,0.03,151.29,151.28,141.32352213]
[1745621072743,0.03,151.29,151.28,140.00226907]
[1745621073361,0.03,151.29,151.28,172.61252819]
[1745621073568,0.03,151.32,151.31,44.64964886]
[1745621073871,0.03,151.34,151.32,18.79181043]
[1745621074051,0.03,151.34,151.32,107.87171381]
[1745621074760,0.03,151.34,151.32,114.48022557]
[1745621079463,0.03,151.34,151.32,107.87171381]
[1745621079979,0.03,151.34,151.32,111.24574737]
[1745621080877,0.03,151.34,151.32,117.85425913]
[1745621082784,0.03,151.34,151.32,111.24574737]
[1745621087088,0.03,151.34,151.32,117.85425913]
[1745621089798,0.03,151.34,151.32,103.68554703]
[1745621091897,0.03,151.34,151.32,110.29405879]
[1745621092403,0.03,151.34,151.32,316.39405879]
[1745621095618,0.03,151.34,151.32,306.41151347]
[1745621101928,0.03,151.34,151.32,313.02002523]
[1745621103218,0.03,151.34,151.32,314.68392523]
[1745621103397,0.03,151.34,151.33,28.71449933]
[1745621104427,0.03,151.34,151.33,35.32257439]
[1745621108228,0.03,151.34,151.33,106.91958853]
[1745621111728,0.03,151.34,151.33,120.05958853]
[1745621114242,0.03,151.37,151.34,100.28151347]
[1745621114538,0.03,151.37,151.34,106.8891519]
[1745621118807,0.03,151.37,151.34,100.28151347]
[1745621126522,0.03,151.37,151.34,113.40151347]
[1745621129950,0.03,151.37,151.34,100.28151347]
[1745621130152,0.03,151.37,151.34,113.40151347]
[1745621134064,0.03,151.37,151.34,120.0091519]
[1745621136173,0.03,151.37,151.34,146.0091519]
[1745621143856,0.03,151.37,151.34,352.0691519]
[1745621144080,0.03,151.37,151.34,355.35590711]
[1745621149178,0.03,151.37,151.34,345.46151347]
[1745621152154,0.03,151.37,151.34,352.0691519]
[1745621153386,0.03,151.37,151.34,146.0091519]
[1745621160461,0.03,151.37,151.34,139.40151347]
[1745621160694,0.03,151.37,151.34,18.64964886]
[1745621160992,9.9226889,151.36,151.34,13.12]
[1745621161201,9.9526889,151.35,151.34,13.12]
[1745621162471,17.9512889,151.35,151.34,13.12]
[1745621163504,17.9512889,151.35,151.32,206.06]
[1745621163686,9.9226889,151.33,151.32,206.06]
[1745621170913,9.9226889,151.33,151.31,13.12]
[1745621171205,11.42702278,151.32,151.31,13.12]
[1745621173694,9.9226889,151.32,151.31,13.12]
[1745621173919,8.0286,151.35,151.31,31.76964886]
[1745621173920,9.9226889,151.33,151.31,31.76964886]
[1745621175491,9.9226889,151.34,151.31,31.76964886]
[1745621175906,9.9226889,151.33,151.31,31.76964886]
[1745621179312,8.0286,151.35,151.31,31.76964886]
[1745621179606,9.9226889,151.33,151.31,31.76964886]
[1745621180608,9.9226889,151.32,151.31,31.76964886]
[1745621184316,9.9226889,151.32,151.31,31.26964886]
[1745621185305,9.9226889,151.33,151.31,31.26964886]
[1745621187611,9.9226889,151.32,151.31,31.26964886]
[1745621187912,9.9226889,151.32,151.31,12.62]
[1745621191111,11.42702278,151.32,151.27,31.83264886]
[1745621191314,9.9226889,151.28,151.27,13.183]
[1745621193436,9.9226889,151.32,151.28,18.64964886]
[1745621193643,9.9226889,151.33,151.28,100.1393519]
[1745621193831,9.9226889,151.33,151.29,0.14216157]
[1745621194202,9.9226889,151.32,151.29,0.14216157]
[1745621196024,9.9226889,151.32,151.31,18.64964886]
[1745621197635,9.9226889,151.33,151.31,18.64964886]
[1745621199134,9.9226889,151.32,151.31,18.64964886]
[1745621199630,9.9226889,151.32,151.3,13.12]
[1745621199821,11.42702278,151.31,151.3,13.12]
[1745621200428,9.9226889,151.31,151.3,13.12]
[1745621231060,9.9226889,151.31,151.27,0.063]
[1745621231254,9.9226889,151.28,151.27,0.063]
[1745621238197,1.50433388,151.33,151.27,0.063]
[1745621238360,9.9226889,151.3,151.27,18.71264886]
[1745621238563,9.9226889,151.31,151.27,18.71264886]
[1745621239057,9.9226889,151.3,151.27,18.71264886]
[1745621244573,9.9226889,151.33,151.28,11.63245047]
[1745621244885,9.9226889,151.33,151.3,18.64964886]
[1745621245191,9.9226889,151.33,151.31,13.12]
[1745621246397,11.42702278,151.32,151.31,13.12]
[1745621246583,9.9226889,151.32,151.31,13.12]
[1745621247390,9.9226889,151.32,151.28,71.56701414]
[1745621247601,9.9226889,151.29,151.28,71.56701414]
[1745621247901,9.9226889,151.29,151.27,13.163]
[1745621248193,11.42702278,151.28,151.27,13.163]
[1745621248569,9.9226889,151.28,151.27,13.163]
[1745621249798,9.9226889,151.28,151.27,0.063]
[1745621254679,49.6134445,151.28,151.27,0.063]
[1745621257599,9.9226889,151.28,151.27,0.063]
[1745621259380,49.6134445,151.28,151.27,0.063]
[1745621259683,9.9226889,151.28,151.27,0.063]
[1745621261195,49.6134445,151.28,151.27,0.063]
[1745621262207,9.9226889,151.28,151.27,0.063]
[1745621263206,49.6134445,151.28,151.27,0.063]
[1745621266010,9.9226889,151.28,151.27,0.063]
[1745621266615,3.12843388,151.31,151.27,0.063]
[1745621266815,9.9226889,151.28,151.27,0.063]
[1745621267827,1.50433388,151.29,151.27,0.063]
[1745621268017,9.9226889,151.28,151.27,0.063]
[1745621269503,49.6134445,151.28,151.27,0.063]
[1745621271532,49.6134445,151.28,151.25,0.063]
[1745621271821,9.9226889,151.26,151.25,0.063]
[1745621275434,9.9226889,151.26,151.24,0.063]
[1745621275628,11.42702278,151.25,151.24,0.063]
[1745621280546,11.42702278,151.25,151.23,0.063]
[1745621280547,9.9226889,151.24,151.23,0.063]
[1745621289772,9.9226889,151.25,151.23,0.063]
[1745621289951,1.50433388,151.29,151.23,1.6762]
[1745621290153,9.9226889,151.26,151.23,1.6762]
[1745621291175,9.9226889,151.25,151.23,1.6762]
[1745621291377,9.9226889,151.24,151.23,1.6762]
[1745621295595,9.9226889,151.26,151.23,20.32584886]
[1745621299386,9.9226889,151.25,151.23,20.32584886]
[1745621299571,9.9226889,151.24,151.23,20.32584886]
[1745621301290,9.9226889,151.24,151.23,1.6762]
[1745621306280,9.9226889,151.25,151.23,1.6762]
[1745621306477,9.9226889,151.24,151.23,1.6762]
[1745621309375,9.9226889,151.24,151.23,0.063]
[1745621322314,9.9226889,151.24,151.22,12.663]
[1745621322484,1.50433388,151.23,151.22,12.663]
[1745621322686,11.42702278,151.23,151.22,12.663]
[1745621324409,11.42702278,151.23,151.21,0.063]
[1745621324597,9.9226889,151.22,151.21,0.063]
[1745621330015,1.50433388,151.27,151.21,0.063]
[1745621330211,9.9226889,151.22,151.21,0.063]
[1745621343351,9.9226889,151.23,151.21,0.063]
[1745621344837,9.9226889,151.22,151.21,0.063]
[1745621345149,9.9226889,151.23,151.21,0.063]
[1745621346944,9.9226889,151.24,151.21,0.063]
[1745621347431,9.9226889,151.23,151.21,0.063]
[1745621350131,9.9226889,151.24,151.21,0.063]
[1745621350958,9.9226889,151.23,151.21,0.063]
[1745621356752,1.50433388,151.27,151.21,0.063]
[1745621356753,9.9226889,151.22,151.21,0.063]
[1745621361238,9.9226889,151.23,151.21,18.71264886]
[1745621361440,9.9226889,151.24,151.21,18.71264886]
[1745621361744,9.9226889,151.23,151.21,18.71264886]
[1745621364254,9.9226889,151.24,151.21,18.71264886]
[1745621365272,9.9226889,151.23,151.21,18.71264886]
[1745621370174,8.9226889,151.23,151.21,18.71264886]
[1745621371555,9.9226889,151.22,151.21,18.71264886]
[1745621372179,9.9226889,151.23,151.21,18.71264886]
[1745621373090,9.9226889,151.24,151.21,18.71264886]
[1745621375880,20.2664242,151.28,151.21,18.71264886]
[1745621376088,9.9226889,151.24,151.21,18.71264886]
[1745621377187,9.9226889,151.24,151.22,13.08]
[1745621379692,9.9226889,151.24,151.21,18.71264886]
[1745621383196,9.9226889,151.24,151.22,13.08]
[1745621383989,9.9226889,151.26,151.23,18.64964886]
[1745621384996,9.9226889,151.27,151.23,18.64964886]
[1745621385496,9.9226889,151.27,151.23,28.57233776]
[1745621386164,9.9226889,151.27,151.23,18.64964886]
[1745621387285,0.03,151.29,151.23,18.64964886]
[1745621397825,0.03,151.29,151.22,13.08]
[1745621397994,1.6594,151.28,151.22,13.08]
[1745621400332,2.6594,151.28,151.22,13.08]
[1745621400628,2.6594,151.28,151.21,0.063]
[1745621402431,1.6594,151.28,151.21,0.063]
[1745621404112,0.03,151.29,151.21,0.063]
[1745621405335,0.03,151.29,151.22,13.08]
[1745621407749,0.03,151.29,151.22,22.92603147]
[1745621409744,0.03,151.29,151.22,13.08]
[1745621415741,0.03,151.29,151.23,18.64964886]
[1745621419950,0.03,151.29,151.22,13.08]
[1745621426637,0.03,151.29,151.22,22.92603147]
[1745621432559,0.03,151.29,151.22,13.08]
[1745621457753,10.96760149,151.31,151.22,13.08]
[1745621459363,1.0,151.31,151.22,13.08]
[1745621459884,1.0,151.31,151.21,0.063]
[1745621460979,0.14216157,151.3,151.21,0.063]
[1745621461166,1.14216157,151.3,151.21,0.063]
[1745621464077,18.79181043,151.3,151.21,0.063]
[1745621464277,19.79181043,151.3,151.21,0.063]
[1745621465467,18.79181043,151.3,151.21,0.063]
[1745621465683,19.79181043,151.3,151.21,0.063]
[1745621468791,0.14216157,151.3,151.21,0.063]
[1745621471785,1.14216157,151.3,151.21,0.063]
[1745621475092,6.66861286,151.3,151.21,0.063]
[1745621476380,5.66861286,151.3,151.21,0.063]
[1745621476589,6.66861286,151.3,151.21,0.063]
[1745621478486,5.66861286,151.3,151.21,0.063]
[1745621478682,6.66861286,151.3,151.21,0.063]
[1745621479474,5.66861286,151.3,151.21,0.063]
[1745621479676,6.66861286,151.3,151.21,0.063]
[1745621479878,0.14216157,151.28,151.21,0.063]
[1745621480075,1.14216157,151.28,151.21,0.063]
[1745621487308,0.14216157,151.28,151.21,0.063]
[1745621488002,1.14216157,151.28,151.21,0.063]
[1745621489730,1.14216157,151.26,151.21,0.063]
[1745621491618,18.79181043,151.26,151.21,0.063]
[1745621491919,19.79181043,151.26,151.21,0.063]
[1745621492815,18.79181043,151.26,151.21,0.063]
[1745621493120,19.79181043,151.26,151.21,0.063]
[1745621495217,18.79181043,151.26,151.21,0.063]
[1745621495418,19.79181043,151.26,151.21,0.063]
[1745621496917,18.79181043,151.26,151.21,0.063]
[1745621502706,24.31826172,151.26,151.21,0.063]
[1745621507227,24.31826172,151.26,151.15,13.123]
[1745621507228,19.84,151.25,151.15,0.063]
[1745621507404,0.14216157,151.18,151.11,0.063]
[1745621507904,7.31388622,151.18,151.11,0.063]
[1745621509363,12.71956813,151.18,151.11,0.063]
[1745621510438,7.17172465,151.17,151.11,0.063]
[1745621520969,7.17172465,151.17,151.13,8.1029]
[1745621521264,20.0,151.27,151.13,8.1029]
[1745621521265,86.87516721,151.26,151.16,1.6521]
[1745621521467,5.27516721,151.26,151.17,13.08]
[1745621521967,0.03,151.25,151.17,13.08]
[1745621523678,18.82181043,151.25,151.17,13.08]
[1745621524062,0.14216157,151.22,151.16,1.6521]
[1745621524288,18.79181043,151.22,151.14,6.4508]
[1745621524588,1.0,151.21,151.14,6.4508]
[1745621525165,0.14216157,151.2,151.14,6.4508]
[1745621525476,1.14216157,151.2,151.14,6.4508]
[1745621526877,0.14216157,151.2,151.14,6.4508]
[1745621527092,19.79181043,151.2,151.14,6.4508]
[1745621528364,19.79181043,151.2,151.12,1.7151]
[1745621528565,1.14216157,151.18,151.12,1.7151]
[1745621529299,0.14216157,151.18,151.12,1.7151]
[1745621529594,1.14216157,151.18,151.12,1.7151]
[1745621532116,1.14216157,151.18,151.12,0.063]
[1745621533085,18.79181043,151.18,151.12,0.063]
[1745621533291,19.79181043,151.18,151.12,0.063]
[1745621533607,0.14216157,151.19,151.12,0.063]
[1745621535186,13.06,151.2,151.13,1.6527]
[1745621536099,1.0,151.23,151.13,1.6527]
[1745621536418,0.14216157,151.22,151.13,1.6527]
[1745621556847,95.66,151.24,151.14,6.4418]
[1745621556848,94.66,151.24,151.14,6.4418]
[1745621560042,81.6,151.24,151.14,6.4418]
[1745621562840,0.17216157,151.25,151.14,6.4418]
[1745621568637,0.14216157,151.24,151.14,6.4418]
[1745621572550,19.67964886,151.25,151.14,6.4418]
[1745621573336,0.03,151.25,151.14,6.4418]
[1745621574348,1.03,151.25,151.14,6.4418]
[1745621574844,1.17216157,151.25,151.14,6.4418]
[1745621576052,0.17216157,151.25,151.14,6.4418]
[1745621576243,1.17216157,151.25,151.14,6.4418]
[1745621576949,0.17216157,151.25,151.14,6.4418]
[1745621579255,0.17216157,151.25,151.15,13.06]
[1745621580256,0.03,151.25,151.16,1.5765]
[1745621586464,0.17216157,151.25,151.16,1.5765]
[1745621591864,0.03,151.25,151.16,1.5765]
[1745621599277,0.03,151.25,151.17,13.06]
[1745621613596,0.03,151.25,151.16,14.6365]
[1745621617502,0.03,151.25,151.17,18.64964886]
[1745621617683,0.03,151.25,151.17,24.91004886]
[1745621632914,0.03,151.25,151.18,13.04]
[1745621663774,0.03,151.25,151.14,31.68964886]
[1745621664362,0.14216157,151.24,151.14,13.04]
[1745621665751,1.5788,151.23,151.14,13.04]
[1745621667177,0.14216157,151.22,151.14,13.04]
[1745621672754,18.79181043,151.22,151.14,13.04]
[1745621680287,18.79181043,151.2,151.12,0.063]
[1745621713407,21.23309187,151.2,151.12,0.063]
[1745621713601,26.79402801,151.2,151.12,0.063]
[1745621715912,37.16823522,151.2,151.12,0.063]
[1745621717809,0.14216157,151.18,151.12,0.063]
[1745621720810,0.14216157,151.19,151.12,0.063]
[1745621722514,10.37420721,151.2,151.12,1.5901]
[1745621723624,10.37420721,151.21,151.12,1.5901]
[1745621725931,23.41420721,151.22,151.12,1.5901]
[1745621727029,0.14216157,151.21,151.12,1.5901]
[1745621731826,13.04,151.22,151.12,1.5901]
[1745621734765,13.04,151.22,151.13,6.0177]
[1745621742175,10.51636878,151.23,151.13,6.0177]
[1745621745277,0.14216157,151.23,151.13,6.0177]
[1745621746878,0.14216157,151.23,151.13,19.0577]
[1745621748078,15.93514335,151.24,151.13,19.0577]
[1745621749981,5.56093614,151.24,151.13,19.0577]
[1745621764287,20.45161043,151.23,151.13,19.0577]
[1745621764494,20.95761409,151.23,151.13,19.0577]
[1745621764674,26.51855023,151.23,151.13,13.04]
[1745621766589,0.14216157,151.21,151.13,13.04]
[1745621769306,10.51636878,151.21,151.13,13.04]
[1745621780411,10.51636878,151.21,151.12,1.5901]
[1745621788279,18.64964886,151.17,151.12,0.063]
[1745621788486,0.14216157,151.16,151.1,0.063]
[1745621789398,13.04,151.17,151.1,0.063]
[1745621794025,13.04,151.17,151.11,1.5935]
[1745621795902,122.30226312,151.2,151.11,1.5935]
[1745621796729,111.92805591,151.2,151.11,1.5935]
[1745621798728,0.14216157,151.19,151.11,1.5935]
[1745621801834,10.51636878,151.19,151.11,1.5935]
[1745621806937,0.14216157,151.19,151.11,1.5935]
[1745621817456,10.51636878,151.19,151.11,1.5935]
[1745621835262,10.51636878,151.19,151.1,0.063]
[1745621835263,0.14216157,151.17,151.1,0.063]
[1745621836058,0.14216157,151.15,151.1,0.063]
[1745621865490,0.14216157,151.12,151.07,0.063]
[1745621867091,81.6,151.14,151.07,0.063]
[1745621867283,81.6,151.14,151.08,1.5469]
[1745621894305,81.6,151.14,151.07,0.063]
[1745621897321,91.97420721,151.14,151.07,0.063]
[1745621902217,81.6,151.14,151.07,0.063]
[1745621919635,91.97420721,151.14,151.07,0.063]
[1745621930041,81.6,151.14,151.07,0.063]
[1745621930640,81.6,151.14,151.08,1.6023]
[1745621952560,11.90400721,151.18,151.08,1.6023]
[1745621952755,11.90400721,151.18,151.09,6.398]
[1745621953365,10.37420721,151.18,151.09,6.398]
[1745621953545,10.37420721,151.18,151.1,18.64964886]
[1745621954153,23.37420721,151.19,151.1,18.64964886]
[1745621954671,23.37420721,151.19,151.1,28.51422666]
[1745621954970,10.37420721,151.19,151.12,18.64964886]
[1745621955639,10.37420721,151.19,151.12,28.51422666]
[1745621955840,81.6,151.2,151.12,28.51422666]
[1745621957355,81.6,151.2,151.14,25.04944886]
[1745621957758,81.6,151.2,151.14,34.91402666]
[1745621960560,81.6,151.2,151.14,25.04944886]
[1745621970586,81.6,151.2,151.14,34.91402666]
[1745621972885,81.6,151.2,151.14,25.04944886]
[1745621979692,0.03,151.21,151.14,34.91402666]
[1745621979898,0.03,151.21,151.15,11.4817778]
[1745621981706,0.03,151.21,151.16,28.51422666]
[1745621984378,0.03,151.21,151.16,18.64964886]
[1745621991810,0.03,151.21,151.16,28.51422666]
[1745621994213,0.03,151.21,151.16,41.49422666]
[1745622000225,0.03,151.21,151.18,9.8645778]
[1745622001113,0.03,151.21,151.19,9.8645778]
[1745622001721,0.03,151.21,151.2,28.51422666]
[1745622003008,0.03,151.21,151.2,18.64964886]
[1745622003932,0.03,151.21,151.2,28.51422666]
[1745622019443,0.03,151.21,151.2,41.49422666]
[1745622025943,0.03,151.21,151.2,41.63638823]
[1745622045241,0.03,151.21,151.2,81.09469943]
[1745622047641,0.03,151.21,151.2,87.70845604]
[1745622048554,0.03,151.21,151.2,107.55845604]
[1745622049452,0.03,151.22,151.21,44.79181043]
[1745622049759,0.03,151.25,151.21,63.52546943]
[1745622049959,0.03,151.25,151.24,28.65638823]
[1745622052440,0.03,151.25,151.2,12.98]
[1745622052756,0.03,151.25,151.21,28.51422666]
[1745622053267,0.03,151.25,151.22,0.14216157]
[1745622053762,0.03,151.25,151.21,28.51422666]
[1745622056162,0.03,151.25,151.22,0.14216157]
[1745622059873,0.03,151.25,151.21,18.64964886]
[1745622060062,0.03,151.25,151.2,12.98]
[1745622060447,1.5917,151.24,151.2,12.98]
[1745622060646,1.5917,151.24,151.19,0.07601334]
[1745622060847,6.482,151.23,151.19,0.07601334]
[1745622071584,1.5917,151.24,151.19,0.07601334]
[1745622078769,1.5917,151.24,151.16,12.96]
[1745622079984,1.5917,151.24,151.14,18.64964886]
[1745622080285,6.0772,151.23,151.12,0.063]
[1745622081563,1.5019,151.22,151.12,0.063]
[1745622081772,7.5791,151.2,151.12,0.063]
[1745622087066,18.79181043,151.19,151.12,0.063]
[1745622087267,81.6,151.18,151.12,0.063]
[1745622087474,0.14216157,151.17,151.12,0.063]
[1745622093709,81.6,151.18,151.12,0.063]
[1745622095315,109.82604558,151.24,151.13,20.21284886]
[1745622102905,0.14216157,151.21,151.12,6.38]
[1745622103213,0.14216157,151.21,151.12,0.063]
[1745622105508,1.5949,151.2,151.12,0.063]
[1745622105725,15.43760199,151.2,151.12,0.063]
[1745622121318,6.21085641,151.2,151.12,0.063]
[1745622126218,13.84270199,151.2,151.12,0.063]
[1745622126420,0.14216157,151.19,151.12,0.063]
[1745622126604,13.98486356,151.19,151.12,0.063]
[1745622141539,24.35907077,151.19,151.12,0.063]
[1745622142835,24.2169092,151.19,151.12,0.063]
[1745622143329,13.84270199,151.19,151.12,0.063]
[1745622145841,13.84270199,151.19,151.12,6.2809]
[1745622147840,6.21085641,151.19,151.13,1.6307]
[1745622148020,23.35420721,151.21,151.13,1.6307]
[1745622149435,12.98,151.21,151.13,1.6307]
[1745622150817,7.77400715,151.2,151.13,1.6307]
[1745622151021,7.77400715,151.2,151.12,6.2809]
[1745622153664,18.14821436,151.2,151.12,6.2809]
[1745622155260,10.37420721,151.19,151.12,6.2809]
[1745622161366,7.63184558,151.2,151.12,6.2809]
[1745622169949,18.00605279,151.2,151.12,6.2809]
[1745622171168,18.00605279,151.2,151.13,1.5737]
[1745622171367,10.37420721,151.2,151.13,1.5737]
[1745622173646,19.19085641,151.21,151.13,1.5737]
[1745622175753,6.21085641,151.21,151.13,14.5337]
[1745622176251,10.37420721,151.22,151.13,14.5337]
[1745622176885,81.6,151.23,151.13,14.5337]
[1745622178983,81.1,151.23,151.13,14.5337]
[1745622182862,80.6,151.23,151.13,14.5337]
[1745622189190,0.14216157,151.22,151.13,14.5337]
[1745622189604,7.77400715,151.22,151.13,14.5337]
[1745622190570,0.14216157,151.2,151.12,6.2809]
[1745622190770,0.14216157,151.18,151.12,0.063]
[1745622191170,18.79181043,151.16,151.08,8.2347]
[1745622191375,80.6,151.15,151.07,0.063]
[1745622191588,107.40270199,151.15,151.07,0.063]
[1745622193109,112.66372256,151.15,151.07,0.063]
[1745622204484,106.45286615,151.15,151.07,0.063]
[1745622214038,99.39181043,151.14,151.07,0.063]
[1745622219343,80.6,151.13,151.07,0.063]
[1745622221033,80.74216157,151.12,151.07,0.063]
[1745622222438,80.6,151.12,151.07,0.063]
[1745622226935,99.39181043,151.11,151.03,0.063]
[1745622227132,0.14216157,151.07,151.01,0.063]
[1745622227342,0.14216157,151.05,150.97,14.6584]
[1745622227541,0.14216157,151.05,150.97,1.6984]
[1745622229258,18.79181043,151.05,150.97,1.6984]
[1745622230045,18.79181043,151.05,150.98,0.13898451]
[1745622230745,0.14216157,151.05,150.98,0.13898451]
[1745622230924,87.43127997,151.06,150.98,0.13898451]
[1745622232224,80.6,151.06,150.98,0.13898451]
[1745622232424,80.6,151.06,150.99,6.4424]
[1745622232843,80.6,151.06,151.0,18.64964886]
[1745622233058,10.37420721,151.12,151.02,18.64964886]
[1745622233241,80.6,151.14,151.02,18.64964886]
[1745622233242,93.56,151.14,151.02,18.64964886]
[1745622233447,0.14216157,151.13,151.03,12.96]
[1745622234658,93.56,151.14,151.03,12.96]
[1745622235156,0.14216157,151.13,151.03,12.96]
[1745622240646,12.96,151.14,151.04,25.09204886]
[1745622240846,12.96,151.14,151.05,1.5721]
[1745622243176,5.26102057,151.15,151.05,1.5721]
[1745622243487,7.63184558,151.16,151.05,1.5721]
[1745622247468,12.96415379,151.16,151.05,1.5721]
[1745622247676,5.33230821,151.16,151.07,0.14216157]
[1745622247874,12.96,151.18,151.07,0.14216157]
[1745622248595,12.96,151.18,151.08,12.96]
[1745622248894,18.19517379,151.18,151.08,12.96]
[1745622249285,18.19517379,151.18,151.09,6.158]
[1745622257575,18.19517379,151.18,151.1,1.5827]
[1745622258903,5.23517379,151.18,151.1,1.5827]
[1745622259085,6.42006157,151.2,151.1,1.5827]
[1745622259893,0.14216157,151.2,151.1,1.5827]
[1745622260902,5.56963557,151.2,151.1,1.5827]
[1745622261787,5.427474,151.2,151.1,1.5827]
[1745622261975,13.84804536,151.21,151.1,1.5827]
[1745622263497,19.19733151,151.21,151.1,1.5827]
[1745622266219,17.65833151,151.21,151.1,1.5827]
[1745622274215,18.79181043,151.2,151.1,1.5827]
[1745622274384,31.10085579,151.2,151.1,1.5827]
[1745622281618,12.96,151.19,151.1,1.5827]
[1745622283320,20.31421043,151.18,151.1,1.5827]
[1745622283501,26.41239938,151.18,151.09,6.158]
[1745622283690,32.62325579,151.18,151.09,6.158]
[1745622284100,32.62325579,151.18,151.08,12.96]
[1745622284822,0.14216157,151.16,151.08,12.96]
[1745622289295,0.14216157,151.16,151.06,1.5565]
[1745622290626,6.21085641,151.17,151.07,18.64964886]
[1745622294119,12.30904536,151.17,151.07,18.64964886]
[1745622306836,12.30904536,151.17,151.07,31.60964886]
[1745622309859,0.14216157,151.16,151.07,12.96]
[1745622310043,26.42365601,151.16,151.06,1.5565]
[1745622310244,1.73936157,151.13,151.03,12.96]
[1745622310454,6.21085641,151.12,151.03,12.96]
[1745622311362,6.21085641,151.12,151.04,18.64964886]
[1745622311565,81.6,151.15,151.05,6.2128]
[1745622311866,81.6,151.15,151.06,1.6051]
[1745622324151,106.60266684,151.14,151.03,12.96]
[1745622324370,0.14216157,151.11,151.02,1.503]
[1745622324667,6.35301798,151.11,151.02,1.503]
[1745622325875,6.21085641,151.11,151.02,1.503]
[1745622326374,20.59184558,151.12,151.02,1.503]
[1745622327276,30.96605279,151.12,151.02,1.503]
[1745622328670,20.59184558,151.12,151.02,1.503]
[1745622331759,26.80270199,151.12,151.02,1.503]
[1745622351309,0.14216157,151.11,151.02,1.503]
[1745622351490,7.77400715,151.11,151.02,1.503]
[1745622353212,7.77400715,151.11,151.01,6.0869]
[1745622353213,0.14216157,151.09,150.99,12.96]
[1745622355502,89.23184558,151.1,150.99,12.96]
[1745622357421,89.23184558,151.1,151.0,18.64964886]
[1745622358511,89.23184558,151.1,150.99,12.96]
[1745622359396,0.14216157,151.09,150.99,12.96]
[1745622359603,7.77400715,151.09,150.99,12.96]